bitfinex-derivatives/quotes_BTCF0:USTF0_20250509
["timestamp","ask_amount","ask_price","bid_price","bid_amount"]
[1746783860285,0.3608,102810.0,102800.0,0.1945622]
[1746783860594,0.3608,102810.0,102800.0,1.02601502]
[1746783860793,0.4034101,102830.0,102820.0,0.1945244]
[1746783860987,0.3918811,102830.0,102820.0,0.80641722]
[1746783861291,0.3539811,102830.0,102820.0,0.91811722]
[1746783861493,0.3539811,102830.0,102820.0,1.01538875]
[1746783861886,0.3539811,102830.0,102820.0,0.89429593]
[1746783862086,0.3539811,102830.0,102820.0,0.30137153]
[1746783862391,0.87277392,102830.0,102820.0,0.45589593]
[1746783862589,0.7586811,102830.0,102820.0,0.45589593]
[1746783862993,0.7616811,102830.0,102820.0,0.45689593]
[1746783863592,0.7616811,102830.0,102820.0,0.46670593]
[1746783863893,0.6879466,102830.0,102820.0,0.46670593]
[1746783864796,0.6879466,102830.0,102820.0,0.18827153]
[1746783864983,0.6879466,102830.0,102820.0,0.38279593]
[1746783865182,0.8479466,102830.0,102820.0,0.59025103]
[1746783865387,0.2071,102830.0,102820.0,0.95105103]
[1746783865591,0.4016054,102830.0,102820.0,0.98575103]
[1746783866190,0.2416054,102830.0,102820.0,0.98575103]
[1746783866389,0.2778054,102830.0,102820.0,0.62495103]
[1746783866785,0.2778054,102830.0,102820.0,0.98575103]
[1746783867290,0.2778054,102830.0,102820.0,0.62495103]
[1746783868196,0.6386054,102830.0,102820.0,0.50385821]
[1746783868398,0.2778054,102830.0,102820.0,0.54385821]
[1746783871997,0.2778054,102830.0,102820.0,0.47042663]
[1746783872295,0.6386054,102830.0,102820.0,0.47042663]
[1746783872496,0.6386054,102830.0,102820.0,0.54385821]
[1746783872701,0.6386054,102830.0,102820.0,0.34933381]
[1746783872702,0.2778054,102830.0,102820.0,0.34933381]
[1746783872997,0.6386054,102830.0,102820.0,0.34933381]
[1746783873299,0.2778054,102830.0,102820.0,0.54385821]
[1746783873488,0.75969822,102830.0,102820.0,0.34933381]
[1746783873687,0.75969822,102830.0,102820.0,0.11293381]
[1746783874094,0.91969822,102830.0,102820.0,0.11293381]
[1746783874890,0.7986054,102830.0,102820.0,0.11293381]
[1746783875096,0.91969822,102830.0,102820.0,0.11293381]
[1746783877798,0.7986054,102830.0,102820.0,0.11293381]
[1746783877996,0.91969822,102830.0,102820.0,0.11293381]
[1746783880302,0.55889822,102830.0,102820.0,0.11293381]
[1746783880601,1.28049822,102830.0,102820.0,0.001]
[1746783882008,1.28049822,102830.0,102790.0,1.20117392]
[1746783882009,0.1945622,102800.0,102790.0,1.20117392]
[1746783882207,0.1945622,102800.0,102790.0,0.6941811]
[1746783882507,0.3012622,102800.0,102790.0,0.6941811]
[1746783882706,0.3012622,102800.0,102790.0,0.79143371]
[1746783883108,0.3032622,102800.0,102790.0,0.79343371]
[1746783883408,0.6640622,102800.0,102790.0,0.44241039]
[1746783883707,0.6660622,102800.0,102790.0,0.47170306]
[1746783884507,0.6660622,102800.0,102790.0,0.39821478]
[1746783884701,0.5954622,102800.0,102790.0,0.59279588]
[1746783885102,0.5954622,102800.0,102790.0,0.39821478]
[1746783885303,0.5984622,102800.0,102790.0,0.38421478]
[1746783885809,0.6044622,102800.0,102790.0,0.57679588]
[1746783886010,0.6044622,102800.0,102790.0,0.26112196]
[1746783886206,0.6407622,102800.0,102790.0,0.25134528]
[1746783891203,0.6407622,102800.0,102790.0,0.3724381]
[1746783891611,0.6044622,102800.0,102790.0,0.3724381]
[1746783892013,0.6044622,102800.0,102790.0,0.25134528]
[1746783893408,0.6393622,102800.0,102790.0,0.25134528]
[1746783893919,0.6393622,102800.0,102790.0,0.44592638]
[1746783894316,0.6393622,102800.0,102790.0,0.25134528]
[1746783894516,0.2436622,102800.0,102790.0,0.5670192]
[1746783894921,0.013,102800.0,102790.0,1.2578192]
[1746783895123,0.07366462,102820.0,102810.0,0.1945433]
[1746783895317,0.26818902,102820.0,102810.0,0.79643612]
[1746783895517,0.26818902,102820.0,102810.0,2.36423612]
[1746783895826,0.26818902,102820.0,102810.0,2.46151711]
[1746783896325,0.27918902,102820.0,102810.0,2.46151711]
[1746783896625,0.28818902,102820.0,102810.0,2.46251711]
[1746783897827,0.2145244,102820.0,102810.0,2.46251711]
[1746783898019,0.2105244,102820.0,102810.0,2.46351711]
[1746783898416,0.2065244,102820.0,102810.0,2.49821711]
[1746783899226,0.2065244,102820.0,102810.0,2.91411711]
[1746783901732,0.012,102820.0,102810.0,2.91411711]
[1746783901931,0.2065244,102820.0,102810.0,2.91411711]
[1746783902320,0.012,102820.0,102810.0,3.32520993]
[1746783902527,0.012,102820.0,102810.0,3.82600993]
[1746783902929,0.2065244,102820.0,102810.0,3.70491711]
[1746783903135,0.2065244,102820.0,102810.0,3.71058646]
[1746783903435,0.2065244,102820.0,102810.0,3.70491711]
[1746783903632,0.012,102820.0,102810.0,3.7105864]
[1746783903826,0.2065244,102820.0,102810.0,3.7105864]
[1746783904235,0.012,102820.0,102810.0,3.7105864]
[1746783904531,0.2065244,102820.0,102810.0,3.58949358]
[1746783905033,0.2065244,102820.0,102810.0,3.50491711]
[1746783905734,0.2065244,102820.0,102810.0,3.14411711]
[1746783906336,0.2401244,102820.0,102810.0,3.14411711]
[1746783906630,0.2401244,102820.0,102810.0,3.02302429]
[1746783907037,0.2753244,102820.0,102810.0,3.02411711]
[1746783907340,0.2065244,102820.0,102810.0,3.13411711]
[1746783909736,0.2065244,102820.0,102810.0,3.01302429]
[1746783909931,0.2747244,102820.0,102810.0,3.13411711]
[1746783910236,0.3081244,102820.0,102810.0,1.54411711]
[1746783911133,0.3081244,102820.0,102810.0,1.19278099]
[1746783911439,0.3081244,102820.0,102810.0,1.30732429]
[1746783911633,0.3081244,102820.0,102810.0,1.04498099]
[1746783911935,1.04001722,102820.0,102810.0,0.09828099]
[1746783912128,1.20001722,102820.0,102810.0,0.09828099]
[1746783912325,1.20001722,102820.0,102810.0,0.001]
[1746783913134,0.95001722,102820.0,102810.0,0.001]
[1746783916443,1.04728122,102820.0,102810.0,0.001]
[1746783916646,0.95001722,102820.0,102810.0,0.001]
[1746783917945,0.8289244,102820.0,102810.0,0.001]
[1746783918143,0.8289244,102820.0,102810.0,0.09826207]
[1746783918555,0.95001722,102820.0,102810.0,0.09826207]
[1746783918943,0.90258902,102820.0,102810.0,0.09826207]
[1746783919149,0.74258902,102820.0,102810.0,0.33863926]
[1746783919443,0.74258902,102820.0,102810.0,0.52793189]
[1746783919749,0.74258902,102820.0,102810.0,0.90873189]
[1746783919750,0.31538902,102820.0,102810.0,0.90873189]
[1746783920041,0.79728184,102820.0,102810.0,0.10409577]
[1746783920248,0.83048184,102820.0,102810.0,0.10409577]
[1746783921246,0.83048184,102820.0,102810.0,0.09826207]
[1746783922348,0.1945622,102800.0,102790.0,0.08539267]
[1746783922550,0.67645502,102800.0,102790.0,0.30572392]
[1746783922839,0.6235622,102800.0,102790.0,0.40298599]
[1746783923245,0.6235622,102800.0,102790.0,0.20840489]
[1746783923639,0.6245622,102800.0,102790.0,0.18120489]
[1746783923838,0.6245622,102800.0,102790.0,0.15130489]
[1746783924033,0.6255622,102800.0,102790.0,0.15130489]
[1746783924447,0.6255622,102800.0,102790.0,0.21830489]
[1746783924645,0.6255622,102800.0,102790.0,0.2183633]
[1746783925146,0.6275622,102800.0,102790.0,0.2103633]
[1746783926434,0.6275622,102800.0,102790.0,0.21050377]
[1746783926639,0.6275622,102800.0,102790.0,0.22520443]
[1746783927338,0.6275622,102800.0,102790.0,0.22020443]
[1746783927339,0.6315622,102800.0,102790.0,0.22020443]
[1746783927740,0.6315622,102800.0,102790.0,0.20550377]
[1746783928048,0.6315622,102800.0,102790.0,0.24550377]
[1746783928745,0.6315622,102800.0,102790.0,0.56117769]
[1746783929049,0.5983622,102800.0,102790.0,0.56117769]
[1746783929950,0.2025622,102800.0,102790.0,0.92197264]
[1746783930951,0.2025622,102800.0,102790.0,2.42197264]
[1746783931747,0.008,102800.0,102790.0,2.73197264]
[1746783931953,0.008,102800.0,102790.0,2.90197264]
[1746783932451,0.008,102800.0,102790.0,3.01417168]
[1746783932844,0.5553317,102820.0,102810.0,0.1945433]
[1746783933153,0.85866306,102830.0,102820.0,0.1945244]
[1746783933355,0.85866306,102830.0,102820.0,0.5198612]
[1746783933558,0.85866306,102830.0,102820.0,0.56988024]
[1746783933850,0.89406306,102830.0,102820.0,0.44878742]
[1746783934053,0.89406306,102830.0,102820.0,0.66716123]
[1746783934352,0.90306306,102830.0,102820.0,0.65324219]
[1746783934554,0.90306306,102830.0,102820.0,0.53214937]
[1746783934854,0.90306306,102830.0,102820.0,0.53314937]
[1746783935155,0.91406306,102830.0,102820.0,0.53314937]
[1746783935543,0.91406306,102830.0,102820.0,0.54298963]
[1746783936146,0.91006306,102830.0,102820.0,0.54198963]
[1746783936853,0.90806306,102830.0,102820.0,0.54198963]
[1746783937041,0.90806306,102830.0,102820.0,0.54207497]
[1746783937450,0.90406306,102830.0,102820.0,0.66316779]
[1746783937847,0.7317798,102830.0,102820.0,0.66316779]
[1746783938149,0.7247798,102830.0,102820.0,0.66216779]
[1746783938353,0.7297798,102830.0,102820.0,0.66316779]
[1746783938653,0.6943798,102830.0,102820.0,0.66316779]
[1746783940052,0.008,102830.0,102820.0,1.02396779]
[1746783940257,0.2025054,102830.0,102820.0,1.02396779]
[1746783940452,0.008,102830.0,102820.0,1.02396779]
[1746783940652,0.004,102840.0,102830.0,0.1945054]
[1746783940854,0.004,102840.0,102830.0,1.27132754]
[1746783941158,0.004,102840.0,102830.0,1.28132754]
[1746783941348,0.1984865,102840.0,102830.0,2.77857069]
[1746783941552,0.004,102840.0,102830.0,2.58857069]
[1746783941754,0.1984865,102840.0,102830.0,2.57857069]
[1746783941960,0.2313865,102840.0,102830.0,2.45747787]
[1746783942160,0.2313865,102840.0,102830.0,2.57857069]
[1746783942748,0.2323865,102840.0,102830.0,2.57857069]
[1746783943160,0.2323865,102840.0,102830.0,2.45747787]
[1746783943363,0.2672865,102840.0,102830.0,2.57857069]
[1746783943659,0.2672865,102840.0,102830.0,1.07857069]
[1746783943960,0.2672865,102840.0,102830.0,1.07254137]
[1746783944151,0.2672865,102840.0,102830.0,2.99390969]
[1746783944353,0.2672865,102840.0,102830.0,2.98844137]
[1746783944662,0.007,102840.0,102830.0,3.24844137]
[1746783945055,0.007,102840.0,102830.0,3.33844137]
[1746783945352,0.007,102840.0,102830.0,3.66253719]
[1746783945559,0.007,102840.0,102830.0,3.56253719]
[1746783945861,0.007,102840.0,102830.0,3.44144437]
[1746783946064,0.007,102840.0,102830.0,3.02554437]
[1746783946963,0.007,102840.0,102830.0,3.12554437]
[1746783947965,0.3604919,102860.0,102850.0,0.1944676]
[1746783948162,0.3604919,102860.0,102850.0,0.38131942]
[1746783948359,0.3604919,102860.0,102850.0,0.44821942]
[1746783948565,0.3604919,102860.0,102850.0,0.54546372]
[1746783949173,0.0355,102860.0,102850.0,0.93626372]
[1746783949369,0.0395,102860.0,102850.0,1.22626469]
[1746783949670,0.0395,102860.0,102850.0,2.68083278]
[1746783949869,0.2389487,102860.0,102850.0,2.51083278]
[1746783950075,0.2389487,102860.0,102850.0,2.68083278]
[1746783950276,0.005,102860.0,102850.0,2.78973996]
[1746783950464,0.006,102860.0,102850.0,2.91083278]
[1746783950668,0.006,102860.0,102850.0,2.90507166]
[1746783950879,0.006,102860.0,102850.0,3.27196169]
[1746783951073,0.006,102860.0,102850.0,3.27196937]
[1746783951268,0.002,102860.0,102850.0,3.27196937]
[1746783952680,0.002,102860.0,102850.0,3.27175348]
[1746783952973,0.002,102860.0,102850.0,3.2717537]
[1746783953178,0.0351,102860.0,102850.0,3.2717537]
[1746783954277,0.0351,102860.0,102850.0,3.4399137]
[1746783954579,0.0351,102860.0,102850.0,3.4399525]
[1746783955879,0.0351,102860.0,102850.0,3.31885968]
[1746783956179,0.0351,102860.0,102850.0,3.4399525]
[1746783956478,0.0351,102860.0,102850.0,3.4396725]
[1746783958183,0.0351,102860.0,102850.0,3.43963097]
[1746783958477,0.004,102870.0,102860.0,0.1944487]
[1746783958677,0.0407,102870.0,102860.0,1.25852083]
[1746783958980,0.0407,102870.0,102860.0,1.37852083]
[1746783959179,0.0407,102870.0,102860.0,1.47573562]
[1746783959776,0.0437,102870.0,102860.0,1.47573562]
[1746783959974,0.0457,102870.0,102860.0,1.47573562]
[1746783961179,0.009,102870.0,102860.0,1.69682844]
[1746783961381,0.0359,102880.0,102870.0,0.1944298]
[1746783961582,0.0359,102880.0,102870.0,1.41009475]
[1746783961781,0.0359,102880.0,102870.0,1.28009475]
[1746783961978,0.0359,102880.0,102870.0,3.00730954]
[1746783962277,0.0359,102880.0,102870.0,2.99730954]
[1746783962479,0.0716,102890.0,102880.0,0.1944109]
[1746783962679,0.0359,102890.0,102880.0,1.32298303]
[1746783963070,0.0359,102890.0,102880.0,1.42017892]
[1746783963271,0.230292,102890.0,102880.0,1.1046752]
[1746783963484,0.265392,102890.0,102880.0,0.4808861]
[1746783963680,0.265392,102890.0,102880.0,0.60197892]
[1746783963876,0.265392,102890.0,102880.0,0.96277892]
[1746783964284,0.071,102890.0,102880.0,0.96277892]
[1746783964483,0.071,102890.0,102880.0,0.99677892]
[1746783964672,0.071,102890.0,102880.0,1.00653657]
[1746783964876,0.265392,102890.0,102880.0,0.64573657]
[1746783965379,0.265392,102890.0,102880.0,1.00653657]
[1746783965583,0.267392,102890.0,102880.0,1.11653657]
[1746783965883,0.267392,102890.0,102880.0,0.75573657]
[1746783966084,0.267392,102890.0,102880.0,0.60064375]
[1746783966385,0.267392,102890.0,102880.0,0.68833657]
[1746783966788,0.267392,102890.0,102880.0,1.04913657]
[1746783966987,0.073,102890.0,102880.0,1.08313657]
[1746783967184,0.073,102890.0,102880.0,1.11953657]
[1746783967484,0.0379,102890.0,102880.0,1.47363657]
[1746783968180,0.0379,102890.0,102880.0,1.47364738]
[1746783968376,0.002,102890.0,102880.0,1.47364738]
[1746783968876,0.002,102890.0,102880.0,2.97364738]
[1746783969276,0.0362,102890.0,102880.0,2.75255456]
[1746783969475,0.0712,102890.0,102880.0,3.03984738]
[1746783969980,0.0692,102890.0,102880.0,3.03984738]
[1746783970181,0.0712,102890.0,102880.0,3.06184738]
[1746783970382,0.0712,102890.0,102880.0,3.06168738]
[1746783971582,0.0702,102890.0,102880.0,3.05068738]
[1746783971787,0.0692,102890.0,102880.0,3.03968738]
[1746783973295,0.1393,102900.0,102890.0,0.194392]
[1746783973588,0.1393,102900.0,102890.0,1.31985983]
[1746783973789,0.1393,102900.0,102890.0,1.12985983]
[1746783973990,0.1393,102900.0,102890.0,1.22705572]
[1746783974191,0.1393,102900.0,102890.0,1.40705572]
[1746783974382,0.1393,102900.0,102890.0,2.90705572]
[1746783974584,0.1749,102900.0,102890.0,2.90705572]
[1746783975384,0.1749,102900.0,102890.0,2.90717546]
[1746783976182,0.1749,102900.0,102890.0,2.78608264]
[1746783976388,0.1749,102900.0,102890.0,2.80717546]
[1746783976587,0.1749,102900.0,102890.0,2.77608264]
[1746783976887,0.2113,102900.0,102890.0,2.79717546]
[1746783977079,0.2113,102900.0,102890.0,2.79718002]
[1746783977285,0.2113,102900.0,102890.0,2.72718002]
[1746783977486,0.2113,102900.0,102890.0,2.90718002]
[1746783978294,0.2113,102900.0,102890.0,2.91718002]
[1746783979493,0.2113,102900.0,102890.0,2.89718002]
[1746783980082,0.3648,102930.0,102890.0,2.82388084]
[1746783980290,0.0341,102910.0,102900.0,0.7734525]
[1746783980487,0.0341,102910.0,102900.0,1.42004463]
[1746783981094,0.0341,102910.0,102900.0,1.51723108]
[1746783981287,0.0677,102910.0,102900.0,1.51723108]
[1746783981690,0.0697,102910.0,102900.0,1.51723108]
[1746783981890,0.0361,102910.0,102900.0,1.4383239]
[1746783982094,0.0361,102910.0,102900.0,1.6183239]
[1746783983088,0.0336,102920.0,102900.0,1.6183239]
[1746783983089,0.0336,102920.0,102910.0,0.1943542]
[1746783983291,0.0699,102920.0,102910.0,0.88874633]
[1746783983688,0.0699,102920.0,102910.0,0.98592333]
[1746783984089,0.0699,102920.0,102910.0,0.98593093]
[1746783984594,0.0729,102920.0,102910.0,0.98593093]
[1746783984999,0.0759,102920.0,102910.0,0.98593093]
[1746783985391,0.1092,102920.0,102910.0,0.98593093]
[1746783986491,0.1092,102920.0,102910.0,0.9857968]
[1746783987493,0.1092,102920.0,102910.0,1.0000882]
[1746783988499,0.1092,102920.0,102910.0,2.50028354]
[1746783990603,0.3035354,102920.0,102910.0,2.37919072]
[1746783990806,0.6643354,102920.0,102910.0,1.92189072]
[1746783990995,0.6643354,102920.0,102910.0,0.42189072]
[1746783991195,0.8243354,102920.0,102910.0,0.42189072]
[1746783992394,0.94542822,102920.0,102910.0,0.22753652]
[1746783992597,0.94542822,102920.0,102910.0,0.11753652]
[1746783992598,1.04259622,102920.0,102910.0,0.11753652]
[1746783993406,1.04259622,102920.0,102910.0,0.31189072]
[1746783993708,0.9215034,102920.0,102910.0,0.3058226]
[1746783994303,0.8243354,102920.0,102910.0,0.3058226]
[1746783995007,0.89818322,102920.0,102910.0,0.3058226]
[1746783996508,1.01927604,102920.0,102910.0,0.3058226]
[1746783996722,1.11644404,102920.0,102910.0,0.1114684]
[1746783996905,0.2429894,102900.0,102890.0,0.2786784]
[1746783997108,0.88488222,102900.0,102890.0,0.2786784]
[1746783997414,0.8663894,102900.0,102890.0,0.2786784]
[1746783997811,0.8663894,102900.0,102890.0,0.37584596]
[1746783998213,0.8663894,102900.0,102890.0,0.37684596]
[1746783998711,0.8663894,102900.0,102890.0,0.37784596]
[1746783999214,0.818792,102900.0,102890.0,0.69233878]
[1746783999410,0.457992,102900.0,102890.0,0.69233878]
[1746783999615,0.57908482,102900.0,102890.0,0.53684596]
[1746783999819,0.57908482,102900.0,102890.0,0.48684596]
[1746784000012,0.818792,102900.0,102890.0,0.48684596]
[1746784000311,0.819792,102900.0,102890.0,0.43724836]
[1746784002214,0.458992,102900.0,102890.0,0.55834118]
[1746784002409,0.53283982,102900.0,102890.0,0.59174118]
[1746784002611,0.89363982,102900.0,102890.0,0.47064836]
[1746784002914,0.89363982,102900.0,102890.0,0.48064836]
[1746784002915,0.53283982,102900.0,102890.0,0.48064836]
[1746784003107,0.53283982,102900.0,102890.0,0.60174118]
[1746784003310,0.37283982,102900.0,102890.0,0.60174118]
[1746784003617,0.37283982,102900.0,102890.0,0.48064836]
[1746784005218,0.53283982,102900.0,102890.0,0.48064836]
[1746784005419,0.458992,102900.0,102890.0,0.48064836]
[1746784006220,0.458992,102900.0,102890.0,0.51594836]
[1746784006519,0.458992,102900.0,102890.0,0.63704118]
[1746784006823,0.458992,102900.0,102890.0,0.51594836]
[1746784007325,0.298992,102900.0,102890.0,0.51594836]
[1746784008727,0.2654731,102900.0,102890.0,0.51594836]
[1746784008915,0.2654731,102900.0,102890.0,0.63704118]
[1746784009919,0.2654731,102900.0,102890.0,0.62704118]
[1746784010615,0.0362,102900.0,102890.0,0.62704118]
[1746784010921,0.2305731,102900.0,102890.0,0.62704118]
[1746784012023,0.3012731,102900.0,102890.0,0.50594836]
[1746784012416,0.37512092,102900.0,102890.0,0.62704118]
[1746784013720,0.14414782,102900.0,102890.0,0.62704118]
[1746784014023,0.33852092,102900.0,102890.0,0.62704118]
[1746784014323,0.14414782,102900.0,102890.0,0.62704118]
[1746784014517,0.30442092,102900.0,102890.0,0.62704118]
[1746784016433,0.30442092,102900.0,102890.0,0.50594836]
[1746784016724,0.30442092,102900.0,102890.0,0.57594836]
[1746784016925,0.30442092,102900.0,102890.0,0.69704118]
[1746784017119,0.11004782,102900.0,102890.0,0.69704118]
[1746784017318,0.07584782,102900.0,102890.0,0.69704118]
[1746784018025,0.27022092,102900.0,102890.0,0.69704118]
[1746784018218,0.07584782,102900.0,102890.0,0.69704118]
[1746784018418,0.27022092,102900.0,102890.0,0.69704118]
[1746784019022,0.27022092,102900.0,102890.0,0.57594836]
[1746784019625,0.27022092,102900.0,102890.0,2.07594836]
[1746784019837,0.07584782,102900.0,102890.0,2.07594836]
[1746784020331,0.07584782,102900.0,102890.0,2.19704118]
[1746784021421,0.27022092,102900.0,102890.0,2.19704118]
[1746784021832,0.07584782,102900.0,102890.0,2.19704118]
[1746784022328,0.27022092,102900.0,102890.0,2.19704118]
[1746784022627,0.07584782,102900.0,102890.0,2.19704118]
[1746784023032,0.27022092,102900.0,102890.0,2.19704118]
[1746784023230,0.07584782,102900.0,102890.0,2.19704118]
[1746784023523,0.07584782,102900.0,102890.0,2.94784118]
[1746784023724,1e-08,102900.0,102890.0,3.168934]
[1746784024432,1e-08,102900.0,102890.0,3.04784118]
[1746784024730,1e-08,102900.0,102890.0,3.04884118]
[1746784025227,1e-08,102900.0,102890.0,3.36574118]
[1746784025631,0.52027398,102920.0,102910.0,0.1943542]
[1746784025924,0.39717114,102920.0,102910.0,0.5808]
[1746784026123,1.03906396,102920.0,102910.0,0.1759]
[1746784026426,1.03906396,102920.0,102910.0,0.09718645]
[1746784026624,1.03906396,102920.0,102910.0,0.11143508]
[1746784026831,0.1943731,102900.0,102890.0,0.4159]
[1746784027123,1.19706592,102900.0,102890.0,0.610292]
[1746784027324,0.4583731,102900.0,102890.0,0.80728482]
[1746784027528,0.8191731,102900.0,102890.0,0.81887845]
[1746784027728,0.8191731,102900.0,102890.0,0.78337845]
[1746784028125,0.6591731,102900.0,102890.0,0.78337845]
[1746784028328,0.6591731,102900.0,102890.0,0.78437845]
[1746784028628,0.2983731,102900.0,102890.0,0.78437845]
[1746784028830,0.6591731,102900.0,102890.0,0.81987845]
[1746784029819,0.104,102900.0,102890.0,0.82087845]
[1746784030026,0.4648,102900.0,102890.0,0.82087845]
[1746784030326,0.104,102900.0,102890.0,0.82087845]
[1746784030826,0.4648,102900.0,102890.0,0.82087845]
[1746784031026,0.104,102900.0,102890.0,0.82087845]
[1746784031227,0.104,102900.0,102890.0,0.40497845]
[1746784031616,0.104,102900.0,102890.0,0.52607127]
[1746784031821,0.0697,102900.0,102890.0,0.54607127]
[1746784032020,0.0337,102900.0,102890.0,0.69297127]
[1746784032524,0.0698,102910.0,102900.0,0.1943731]
[1746784032726,0.1043,102910.0,102900.0,0.55706592]
[1746784033221,0.1043,102910.0,102900.0,0.65425237]
[1746784033427,0.20307717,102910.0,102900.0,0.65425237]
[1746784033727,0.20407717,102910.0,102900.0,0.65425237]
[1746784033920,0.09977717,102910.0,102900.0,0.53425237]
[1746784034121,0.09977717,102910.0,102900.0,1.18534519]
[1746784034322,0.09977717,102910.0,102900.0,0.94315955]
[1746784034523,0.10077717,102910.0,102900.0,1.06425237]
[1746784034728,0.13457717,102910.0,102900.0,1.06425237]
[1746784035033,0.17147717,102910.0,102900.0,1.06425237]
[1746784037827,0.0727,102910.0,102900.0,1.06425237]
[1746784039434,0.0358,102910.0,102900.0,1.06425237]
[1746784039625,0.002,102910.0,102900.0,1.06425237]
[1746784040029,0.002,102910.0,102900.0,0.94315955]
[1746784040224,0.002,102910.0,102900.0,1.35905955]
[1746784040426,0.002,102910.0,102900.0,1.48015237]
[1746784040625,0.002,102910.0,102900.0,1.96204519]
[1746784041227,0.002,102910.0,102900.0,2.06204519]
[1746784041824,0.002,102910.0,102900.0,2.06752382]
[1746784042535,0.001,102910.0,102900.0,2.06752382]
[1746784042735,0.001,102910.0,102900.0,3.22633818]
[1746784042937,0.20807717,102930.0,102920.0,0.1943354]
[1746784043235,0.56887717,102930.0,102920.0,0.25981403]
[1746784043423,0.56887717,102930.0,102920.0,0.29371403]
[1746784043627,0.56887717,102930.0,102920.0,0.39087215]
[1746784043828,0.20807717,102930.0,102920.0,0.38539352]
[1746784044025,0.56887717,102930.0,102920.0,0.39539352]
[1746784044231,0.20807717,102930.0,102920.0,0.39539352]
[1746784044424,0.20807717,102930.0,102920.0,0.42909352]
[1746784044628,0.21007717,102930.0,102920.0,0.42909352]
[1746784044936,0.21207717,102930.0,102920.0,0.42909352]
[1746784045337,0.21207717,102930.0,102920.0,0.4345717]
[1746784045729,0.1133,102930.0,102920.0,0.4345717]
[1746784046837,0.0423,102930.0,102920.0,0.4345717]
[1746784047037,0.0423,102930.0,102920.0,0.83566452]
[1746784047244,0.0423,102930.0,102920.0,1.21646452]
[1746784047531,0.0423,102930.0,102920.0,1.37646452]
[1746784047833,0.008,102930.0,102920.0,1.37646452]
[1746784048231,0.008,102930.0,102920.0,1.2553717]
[1746784048431,0.008,102930.0,102920.0,1.37646452]
[1746784049239,0.007,102930.0,102920.0,1.37646452]
[1746784049635,0.007,102930.0,102920.0,1.37669486]
[1746784050030,0.007,102930.0,102920.0,1.25560204]
[1746784050236,0.006,102930.0,102920.0,1.37669486]
[1746784052343,0.006,102930.0,102920.0,1.79259486]
[1746784052542,0.006,102930.0,102920.0,1.67150204]
[1746784052947,0.006,102930.0,102920.0,1.94867486]
[1746784053147,0.006,102930.0,102920.0,1.82758204]
[1746784053444,0.006,102930.0,102920.0,1.79259486]
[1746784053850,0.006,102930.0,102920.0,1.78688634]
[1746784054040,0.006,102930.0,102920.0,1.94284634]
[1746784054543,0.006,102930.0,102920.0,1.78688634]
[1746784055143,0.006,102930.0,102920.0,1.94272634]
[1746784055446,0.006,102930.0,102920.0,1.94268634]
[1746784056049,0.006,102930.0,102920.0,1.78688634]
[1746784056252,0.006,102930.0,102920.0,1.82147352]
[1746784056547,0.006,102930.0,102920.0,1.78688634]
[1746784056844,0.006,102930.0,102920.0,1.94252634]
[1746784057051,0.006,102930.0,102920.0,1.94248634]
[1746784057642,0.006,102930.0,102920.0,1.82139352]
[1746784057849,0.006,102930.0,102920.0,1.94248634]
[1746784058045,0.006,102930.0,102920.0,1.78688634]
[1746784058246,0.006,102930.0,102920.0,1.94236634]
[1746784058852,0.006,102930.0,102920.0,1.78688634]
[1746784059153,0.006,102930.0,102920.0,1.94228634]
[1746784059340,0.006,102930.0,102920.0,1.94224634]
[1746784060347,0.006,102930.0,102920.0,1.78688634]
[1746784060550,0.006,102930.0,102920.0,1.94212634]
[1746784060846,0.006,102930.0,102920.0,1.94208634]
[1746784061447,0.006,102930.0,102920.0,1.66579352]
[1746784061651,0.006,102930.0,102920.0,1.94200634]
[1746784062050,0.006,102930.0,102920.0,1.82091352]
[1746784062256,0.006,102930.0,102920.0,1.94200634]
[1746784066048,0.006,102930.0,102920.0,2.16309916]
[1746784068355,0.005,102930.0,102920.0,2.04300634]
[1746784068653,0.004,102930.0,102920.0,2.04300634]
[1746784068854,0.004,102930.0,102920.0,2.04400634]
[1746784070656,0.004,102930.0,102920.0,1.57400634]
[1746784070952,1.09886932,102930.0,102920.0,0.17915812]
[1746784071154,0.1943354,102920.0,102910.0,0.01434469]
[1746784071454,0.1943542,102910.0,102900.0,0.4485]
[1746784071643,0.6266542,102910.0,102900.0,0.02]
[1746784071842,0.4323,102910.0,102890.0,0.37522291]
[1746784072043,0.2627731,102900.0,102890.0,0.43522291]
[1746784072243,0.2627731,102900.0,102890.0,0.62087385]
[1746784072443,0.0684,102900.0,102890.0,0.62087385]
[1746784072651,0.0684,102900.0,102890.0,0.65347385]
[1746784073052,0.2284,102900.0,102890.0,0.65347385]
[1746784073252,0.4227731,102900.0,102890.0,0.65347385]
[1746784073448,0.4227731,102900.0,102890.0,0.53338103]
[1746784073644,0.4227731,102900.0,102890.0,0.50078103]
[1746784073945,0.4227731,102900.0,102890.0,0.15815812]
[1746784074150,0.8807611,102900.0,102890.0,0.09815812]
[1746784074452,1.28525392,102900.0,102890.0,0.001]
[1746784075255,1.03525392,102900.0,102890.0,0.001]
[1746784075453,0.9141611,102900.0,102890.0,0.195392]
[1746784075758,0.8169731,102900.0,102890.0,0.41367127]
[1746784075960,0.8169731,102900.0,102890.0,0.44627127]
[1746784077760,0.7949731,102900.0,102890.0,0.44627127]
[1746784079162,0.7949731,102900.0,102890.0,0.48097127]
[1746784080967,0.7949731,102900.0,102890.0,0.45627127]
[1746784081953,0.7949731,102900.0,102890.0,0.33517845]
[1746784082155,0.7949731,102900.0,102890.0,0.14078645]
[1746784082556,1.01325392,102900.0,102890.0,0.09818645]
[1746784082962,1.01325392,102900.0,102890.0,0.001]
[1746784083151,0.8921611,102900.0,102890.0,0.001]
[1746784083352,1.01325392,102900.0,102890.0,0.001]
[1746784083560,0.8921611,102900.0,102890.0,0.001]
[1746784085166,1.2529611,102900.0,102890.0,0.001]
[1746784087164,1.37405392,102900.0,102890.0,0.001]
[1746784088667,0.1944109,102880.0,102870.0,0.00145799]
[1746784088882,1.08571052,102880.0,102870.0,0.0347]
[1746784089071,0.1944487,102860.0,102850.0,0.43277894]
[1746784089274,0.5552487,102860.0,102850.0,0.52277894]
[1746784089472,0.6193487,102860.0,102850.0,0.64387176]
[1746784089773,0.6193487,102860.0,102850.0,0.741096]
[1746784090175,0.6849309,102880.0,102870.0,0.1944298]
[1746784090370,0.1944298,102870.0,102860.0,0.52775472]
[1746784090576,0.5901298,102870.0,102860.0,0.07]
[1746784090780,0.1944487,102860.0,102850.0,0.42213946]
[1746784091081,0.2293487,102860.0,102850.0,0.94463946]